{"text_format":"1","workbook":"xlsx","n_sheets":2,"sheets":["Functions","TI cheat sheet"],"not_rendered":{"charts":0,"images":0,"macros":1,"external_links":0,"defined_names":4,"comments":0,"pivot_tables":0},"unopened":[],"bounds":{"document_bytes":16777216,"sheet_cells":100000,"rows_first":2000,"rows_last":500,"rows_between":2000,"halvings":0,"cell_chars":16384,"cell_head_chars":4096},"cells_cut":0,"cells_raw":0,"read":"whole","date_system":"1900"}

{"sheet":"Functions","index":0,"n_rows":167,"n_cols":8,"rows_kept":167,"cut":false,"hidden":false,"merged":[]}
["Nr","Name","Formula","Category","Rules or TI","ID_Lookup","Naam_cheat","Description"]
[1,"AsciiDelete","AsciiDelete( sFileName );","ASCII","Turbo Integrator",1,"AsciiDelete","ASCIIDelete deletes an ASCII file."]
[2,"AsciiOutput","AsciiOutput( sFileName, sString1, sString2, sString3, ... );","ASCII","Turbo Integrator",2,"AsciiOutput","ASCIIOutput writes a comma-delimited record to an ASCII file."]
[3,"TextOutput","TextOutput( sFileName, sString1, sString2, sString3, ... );","ASCII","Turbo Integrator",3,"TextOutput","TextOutput writes a comma-delimited record to a text file."]
[4,"SetInputCharacterSet","SetInputCharacterSet( sCharSet );","ASCII","Turbo Integrator",4,"SetInputCharacterSet","SetInputCharacterSet function lets you specify the character set used in a TurboIntegrator data source."]
[5,"SetOutputCharacterSet","SetOutputCharacterSet( sFileName, sCharSet );","ASCII","Turbo Integrator",5,"SetOutputCharacterSet","SetOutputCharacterSet lets you specify the character set to be used when writing to a text file using TextOutput in a TurboIntegrator proces."]
[6,"SetOutputEscapeDoubleQuote","SetOutputEscapeDoubleQuote( sFileName, 1 = Escape/0 = not );","ASCII","Turbo Integrator",6,"SetOutputEscapeDoubleQuote","SetOutputEscapeDoubleQuote allows you to escape double quotes that appear in element names or data values when exporting a cube view to a .csv file."]
[7,"AttrNL","ATTRNL( sDim, sEl, sAttr[, sLangCode] );","Attribute","Turbo Integrator",7,"AttrNL","ATTRNL returns a numeric attribute for a specified element of a dimension."]
[8,"AttrSL","ATTRSL( sDim, sEl, sAttr[, sLangCode] );","Attribute","Turbo Integrator",8,"AttrSL","ATTRSL returns a string attribute for a specified element of a dimension."]
[9,"AttrDelete","AttrDelete( sDim, sAttr );","Attribute","Turbo Integrator",9,"AttrDelete","AttrDelete deletes an element attribute from the TM1 database."]
[10,"AttrInsert","AttrInsert( sDim, sPrevAttr, sAttr, sType );","Attribute","Turbo Integrator",10,"AttrInsert","AttrInsert creates a new element attribute for a dimension. The function can create a string, numeric, or alias attribute."]
[11,"AttrPutN","AttrPutN( nValue, sDim, sEl, sAttr );","Attribute","Turbo Integrator",11,"AttrPutN","AttrPutN assigns a value to a numeric element attribute."]
[12,"AttrPutS","AttrPutS( sValue, sDim, sEl, sAttr[, enforceUnique (1 if alias and get \"alias space element name\")] );","Attribute","Turbo Integrator",12,"AttrPutS (*)","AttrPutS assigns a value to a string element attribute."]
[13,"AttrToAlias","AttrToAlias( sDim, sAttr );","Attribute","Turbo Integrator",13,"AttrToAlias (*)"]
[14,"ChoreAttrDelete","ChoreAttrDelete( sAttr );","Attribute","Turbo Integrator",14,"ChoreAttrDelete","ChoreAttrDelete deletes a chore attribute from the TM1® database."]
[15,"ChoreAttrInsert","ChoreAttrInsert( sPrevAttr, sAttr, sType );","Attribute","Turbo Integrator",15,"ChoreAttrInsert","ChoreAttrInsert creates a new attribute for chores on your TM1® server. The function can create a string, numeric, or alias attribute."]
[16,"ChoreAttrPutN","ChoreAttrPutN( nValue, sChore, sAttr[, sLangCode] );","Attribute","Turbo Integrator",16,"ChoreAttrPutN","ChoreAttrPutN assigns a value to a numeric chore attribute."]
[17,"ChoreAttrPutS","ChoreAttrPutS( sValue, sChore, sAttr[, sLangCode] );","Attribute","Turbo Integrator",17,"ChoreAttrPutS","ChoreAttrPutS assigns a value to a string chore attribute."]
[18,"ChoreATTRN","ChoreATTRN( sChore, sAttr );","Attribute","Turbo Integrator",18,"ChoreATTRN","ChoreAttrN returns a numeric attribute for a specified chore."]
[19,"ChoreATTRNL","ChoreATTRNL( sChore, sAttr[, sLangCode] );","Attribute","Turbo Integrator",19,"ChoreATTRNL","ChoreAttrNL returns an attribute's numeric value for a specified chore with respect to a given locale."]
[20,"ChoreATTRS","ChoreATTRS( sChore, sAttr );","Attribute","Turbo Integrator",20,"ChoreATTRS","ChoreAttrS returns a string attribute for a specified chore."]
[21,"ChoreATTRSL","ChoreATTRSL( sChore, sAttr[, sLangCode] );","Attribute","Turbo Integrator",21,"ChoreATTRSL","ChoreAttrSL returns a string attribute value for a specified chore with respect to a given locale."]
[22,"CubeAttrDelete","CubeAttrDelete( sAttr);","Attribute","Turbo Integrator",22,"CubeAttrDelete","CubeAttrDelete deletes a cube attribute from the TM1 database."]
[23,"CubeAttrInsert","CubeAttrInsert( sPrevAttr, sAttr, sType );","Attribute","Turbo Integrator",23,"CubeAttrInsert","CubeAttrInsert creates a new attribute for cubes on your TM1 server. The function can create a string, numeric, or alias attribute."]
[24,"CubeAttrPutN","CubeAttrPutN( nValue, sCube, sAttr[, sLangCode] );","Attribute","Turbo Integrator",24,"CubeAttrPutN","CubeAttrPutN assigns a value to a numeric cube attribute."]
[25,"CubeAttrPutS","CubeAttrPutS( sValue, sCube, sAttr[, sLangCode] );","Attribute","Turbo Integrator",25,"CubeAttrPutS","CubeAttrPutS assigns a value to a string cube attribute."]
[26,"CubeATTRN","CubeATTRN( sCube, sAttr );","Attribute","Turbo Integrator",26,"CubeATTRN","CubeATTRN returns a numeric attribute for a specified cube."]
[27,"CubeATTRNL","CubeATTRNL( sCube, sAttr[, sLangCode] );","Attribute","Turbo Integrator",27,"CubeATTRNL","CubeATTRNL returns a numeric attribute value for a specified cube with respect to a given locale."]
[28,"CubeATTRS","CubeATTRS( sCube, sAttr );","Attribute","Turbo Integrator",28,"CubeATTRS","CubeATTRS returns a string attribute for a specified cube."]
[29,"CubeATTRSL","CubeATTRSL( sCube, sAttr[, sLangCode] );","Attribute","Turbo Integrator",29,"CubeATTRSL","CubeATTRSL returns a numeric attribute value for a specified cube with respect to a given locale."]
[30,"DimensionAttrDelete","DimensionAttrDelete( sAttr );","Attribute","Turbo Integrator",30,"DimensionAttrDelete","DimensionAttrDelete deletes a dimension attribute from the TM1 database."]
[31,"DimensionAttrInsert","DimensionAttrInsert( sPrevAttr, sAttr, sType );","Attribute","Turbo Integrator",31,"DimensionAttrInsert","DimensionAttrInsert creates a new attribute for dimensions on your TM1 server. The function can create a string, numeric, or alias attribute."]
[32,"DimensionAttrPutN","DimensionAttrPutN( nValue, sDim, sAttr[, sLangCode] );","Attribute","Turbo Integrator",32,"DimensionAttrPutN","DimensionAttrPutN assigns a value to a numeric dimension attribute."]
[33,"DimensionAttrPutS","DimensionAttrPutS( sValue, sDim, sAttr[, sLangCode] );","Attribute","Turbo Integrator",33,"DimensionAttrPutS","DimensionAttrPutS assigns a value to a string dimension attribute."]
[34,"DimensionATTRN","DimensionATTRN( sDim, sAttr );","Attribute","Turbo Integrator",34,"DimensionATTRN","DimensionATTRNL returns a numeric attribute value for a specified dimension with respect to a given locale."]
[35,"DimensionATTRNL","DimensionATTRNL( sDim, sAttr[, sLangCode] );","Attribute","Turbo Integrator",35,"DimensionATTRNL","DimensionATTRNL returns a numeric attribute value for a specified dimension with respect to a given locale."]
[36,"DimensionATTRS","DimensionATTRS( sDim, sAttr );","Attribute","Turbo Integrator",36,"DimensionATTRS","DimensionATTRSL returns a string attribute value for a specified dimension with respect to a given locale."]
[37,"DimensionATTRSL","DimensionATTRSL( sDim, sAttr[, sLangCode] );","Attribute","Turbo Integrator",37,"DimensionATTRSL","DimensionATTRSL returns a string attribute value for a specified dimension with respect to a given locale."]
[38,"ElementAttrDelete","ElementAttrDelete( sDim, sHier, sAttr );","Attribute","Turbo Integrator",38,"ElementAttrDelete","ElementAttrDelete deletes an element attribute from the TM1 database."]
[39,"ElementAttrInsert","ElementAttrInsert( sDim, sHier, sPrevAttr, sAttr, Type );","Attribute","Turbo Integrator",39,"ElementAttrInsert","ElementAttrInsert creates a new element attribute for a dimension. The function can create a string, numeric, or alias attribute."]
[40,"ElementAttrPutN","ElementAttrPutN( nValue, sDim, sHier, sEl, sAttr[, sLangCode] );","Attribute","Turbo Integrator",40,"ElementAttrPutN","ElementAttrPutN assigns a value to a numeric element attribute."]
[41,"ElementAttrPutS","ElementAttrPutS( sValue, sDim, sHier, sEl, sAttr[, sLangCode] );","Attribute","Turbo Integrator",41,"ElementAttrPutS","ElementAttrPutS assigns a value to a string element attribute."]
[42,"ElementATTRN","ElementATTRN( sDim, sHier, sEl, sAttr );","Attribute","Turbo Integrator",42,"ElementATTRN","ElementAttrN returns a numeric attribute for a specified element of a dimension."]
[43,"ElementATTRNL","ElementATTRNL( sDim, sHier, sEl, sAttr[, sLangCode] );","Attribute","Turbo Integrator",43,"ElementATTRNL","ElementATTRNL returns a numeric attribute for a specified element of a dimension."]
[44,"ElementATTRS","ElementATTRS( sDim, sHier, sEl, sAttr[, sLangCode] );","Attribute","Turbo Integrator",44,"ElementATTRS","ElementATTRS returns a string attribute for a specified element of a dimension."]
[45,"ElementATTRSL","ElementATTRSL( sDim, sHier, sEl, sAttr[, sLangCode] );","Attribute","Turbo Integrator",45,"ElementATTRSL","ElementATTRSL returns a string attribute for a specified element of a dimension."]
[46,"HierarchyAttrPutN","HierarchyAttrPutN( nValue, sDim, sHier, sAttr[, sLangCode] );","Attribute","Turbo Integrator",46,"HierarchyAttrPutN","HierarchyAttrPutN assigns a value to a numeric dimension attribute."]
[47,"HierarchyAttrPutS","HierarchyAttrPutS( sValue, sDim, sHier, sAttr[, sLangCode] );","Attribute","Turbo Integrator",47,"HierarchyAttrPutS","HierarchyAttrPutS assigns a value to a string dimension attribute."]
[48,"HierarchyAttrn","HierarchyAttrn( sDim, sHier, sAttr );","Attribute","Turbo Integrator",48,"HierarchyAttrn","HierarchyATTRNL returns a numeric attribute value for a specified dimension with respect to a given locale."]
[49,"HierarchyAttrnl","HierarchyAttrnl( sDim, sHier, sAttr[, sLangCode] );","Attribute","Turbo Integrator",49,"HierarchyAttrnl","HierarchyATTRNL returns a numeric attribute value for a specified dimension with respect to a given locale."]
[50,"HierarchyAttrs","HierarchyAttrs( sDim, sAttr );","Attribute","Turbo Integrator",50,"HierarchyAttrs","HierarchyATTRSL returns a string attribute value for a specified dimension with respect to a given locale."]
[51,"HierarchyAttrsl","HierarchyAttrsl( sDim, sHier, sAttr[, sLangCode] );","Attribute","Turbo Integrator",51,"HierarchyAttrsl","HierarchyATTRSL returns a string attribute value for a specified dimension with respect to a given locale."]
[52,"HierarchySubsetAttrDelete","HierarchySubsetAttrDelete( sDim, sHier, sAttr );","Attribute","Turbo Integrator",52,"HierarchySubsetAttrDelete","HierarchySubsetAttrDelete deletes a subset attribute from the TM1® database."]
[53,"HierarchySubsetAttrInsert","HierarchySubsetAttrInsert( sDim, sHier, PrevsAttr, NewsAttr, sType );","Attribute","Turbo Integrator",53,"HierarchySubsetAttrInsert","HierarchySubsetAttrInsert creates a new attribute for subsets on your TM1 server. The function creates a string, numeric, or alias attribute."]
[54,"HierarchySubsetAttrn","HierarchySubsetAttrn( sDim, sHier, sSub, sAttr );","Attribute","Turbo Integrator",54,"HierarchySubsetAttrn","HierarchySubsetATTRN returns a numeric attribute for a specified subset associated with a dimension hierarchy."]
[55,"HierarchySubsetAttrnl","HierarchySubsetAttrnl( sDim, sHier, sSub, sAttr[, sLangCode] );","Attribute","Turbo Integrator",55,"HierarchySubsetAttrnl","HierarchySubsetATTRNL returns an attribute's numeric value for a specified subset (and locale) associated with a dimension hierarchy."]
[56,"HierarchySubsetAttrPutN","HierarchySubsetAttrPutN( nValue, sDim, sHier, sSub, sAttr[, sLangCode] );","Attribute","Turbo Integrator",56,"HierarchySubsetAttrPutN","HierarchySubsetAttrPutN assigns a numeric value to an attribute for a specified subset associated with a dimension hierarchy."]
[57,"HierarchySubsetAttrPutS","HierarchySubsetAttrPutS( sValue, sDim, sHier, sSub, sAttr[, sLangCode] );","Attribute","Turbo Integrator",57,"HierarchySubsetAttrPutS","HierarchySubsetAttrPutS assigns a string value to an attribute for a specified subset associated with a dimension hierarchy."]
[58,"HierarchySubsetAttrs","HierarchySubsetAttrs( sDim, sHier, sSub, sAttr );","Attribute","Turbo Integrator",58,"HierarchySubsetAttrs","HierarchySubsetATTRS returns a string attribute for a specified subset associated with a dimension hierarchy."]
[59,"HierarchySubsetAttrsl","HierarchySubsetAttrsl( sDim, sHier, sSub, sAttr[, sLangCode] );","Attribute","Turbo Integrator",59,"HierarchySubsetAttrsl","HierarchySubsetATTRSL returns an attribute's string value for a specified subset (and locale) associated with a dimension hierarchy."]
[60,"ProcessAttrDelete","ProcessAttrDelete( sAttr );","Attribute","Turbo Integrator",60,"ProcessAttrDelete","ProcessAttrDelete deletes a process attribute from the TM1® database."]
[61,"ProcessAttrInsert","ProcessAttrInsert( sPrevAttr, sAttr, sType );","Attribute","Turbo Integrator",61,"ProcessAttrInsert","ProcessAttrInsert creates a new attribute for processes on your TM1® server. The function can create a string, numeric, or alias attribute."]
[62,"ProcessATTRN","ProcessATTRN( sProcess, sAttr );","Attribute","Turbo Integrator",62,"ProcessATTRN","ProcessAttrN returns a numeric attribute for a specified process."]
[63,"ProcessATTRNL","ProcessATTRNL( sProcess, sAttr[, sLangCode] );","Attribute","Turbo Integrator",63,"ProcessATTRNL","ProcessAttrNL returns an attribute's numeric value for a specified process with respect to a given locale."]
[64,"ProcessAttrPutN","ProcessAttrPutN( nValue, sProcess, sAttr[, sLangCode] );","Attribute","Turbo Integrator",64,"ProcessAttrPutN","ProcessAttrPutN assigns a value to a numeric process attribute."]
[65,"ProcessAttrPutS","ProcessAttrPutS( sValue, sProcess, sAttr[, sLangCode] );","Attribute","Turbo Integrator",65,"ProcessAttrPutS","ProcessAttrPutS assigns a value to a string process attribute."]
[66,"ProcessATTRS","ProcessATTRS( sProcess, sAttr );","Attribute","Turbo Integrator",66,"ProcessATTRS","ProcessAttrS returns a string attribute for a specified process."]
[67,"ProcessATTRSL","ProcessATTRSL( sProcess, sAttr[, sLangCode] );","Attribute","Turbo Integrator",67,"ProcessATTRSL","ProcessAttrSL returns a string attribute value for a specified process with respect to a given locale."]
[68,"SubsetAttrDelete","SubsetAttrDelete( sDim, sAttr );","Attribute","Turbo Integrator",68,"SubsetAttrDelete","SubsetAttrDelete deletes a subset attribute from the TM1® database."]
[69,"SubsetAttrInsert","SubsetAttrInsert( sDim, sPrevAttr, sAttr, sType );","Attribute","Turbo Integrator",69,"SubsetAttrInsert","SubsetAttrInsert creates a new attribute for subsets on your TM1 server. The function creates a string, numeric, or alias attribute."]
[70,"SubsetATTRN","SubsetATTRN( sDim, sSub, sAttr );","Attribute","Turbo Integrator",70,"SubsetATTRN","SubsetATTRN returns a numeric attribute for a specified subset."]
[71,"SubsetATTRNL","SubsetATTRNL( sDim, sSub, sAttr[, sLangCode] );","Attribute","Turbo Integrator",71,"SubsetATTRNL","SubsetATTRNL returns an attribute's numeric value for a specified subset with respect to a given locale."]
[72,"SubsetATTRS","SubsetATTRS( sDim, sSub, sAttr );","Attribute","Turbo Integrator",72,"SubsetATTRS","SubsetATTRS returns a string attribute for a specified subset."]
[73,"SubsetATTRSL","SubsetATTRSL( sDim, sSub, sAttr[, sLangCode] );","Attribute","Turbo Integrator",73,"SubsetATTRSL","SubsetATTRSL returns an attribute's string value for a specified subset with respect to a given locale."]
[74,"SubsetAttrPutN","SubsetAttrPutN( nValue, sDim, sSub, sAttr[, sLangCode] );","Attribute","Turbo Integrator",74,"SubsetAttrPutN","SubsetAttrPutN assigns a numeric value to an attribute for a specified subset."]
[75,"SubsetAttrPutS","SubsetAttrPutS( sValue, sDim, sSub, sAttr[, sLangCode] );","Attribute","Turbo Integrator",75,"SubsetAttrPutS","SubsetAttrPutS assigns a string value to an attribute for a specified subset."]
[76,"ViewAttrDelete","ViewAttrDelete( sCube, sAttr );","Attribute","Turbo Integrator",76,"ViewAttrDelete","SubsetAttrDelete deletes a subset attribute from the TM1® database."]
[77,"ViewAttrInsert","ViewAttrInsert( sCube, sPrevAttr, sAttr, sType );","Attribute","Turbo Integrator",77,"ViewAttrInsert","ViewAttrInsert creates a new attribute for views of a specific cube on your TM1® server. The function can create a string, numeric, or alias attribute."]
[78,"ViewATTRN","ViewATTRN( sCube, sView, sAttr );","Attribute","Turbo Integrator",78,"ViewATTRN","ViewAttrN returns a numeric attribute for a specified view."]
[79,"ViewATTRNL","ViewATTRNL( sCube, sView, sAttr[, sLangCode] );","Attribute","Turbo Integrator",79,"ViewATTRNL","ViewAttrNL returns an attribute's numeric value for a specified view with respect to a given locale."]
[80,"ViewAttrPutN","ViewAttrPutN( nValue, sCube, sView, sAttr[, sLangCode] );","Attribute","Turbo Integrator",80,"ViewAttrPutN","ViewAttrPutN assigns a value to a numeric view attribute."]
[81,"ViewAttrPutS","ViewAttrPutS( sValue, sCube, sView, sAttr[, sLangCode] );","Attribute","Turbo Integrator",81,"ViewAttrPutS","ViewAttrPutS assigns a string value to an attribute for a specified view."]
[82,"ViewATTRS","ViewATTRS( sCube, sView, sAttr );","Attribute","Turbo Integrator",82,"ViewATTRS","ViewAttrS returns a string attribute for a specified view."]
[83,"ViewATTRSL","ViewATTRSL( sCube, sView, sAttr[, sLangCode] );","Attribute","Turbo Integrator",83,"ViewATTRSL","ViewAttrSL returns an attribute's string value for a specified view with respect to a given locale."]
[84,"SwapAliasWithPrincipalName","SwapAliasWithPrincipalName( sDim, sAlias, 0 );","Attribute","Turbo Integrator",84,"SwapAliasWithPrincipalName (*)"]
[85,"ChoreError","ChoreError;","Chore","Turbo Integrator",85,"ChoreError","ChoreError causes the immediate termination of a chore. It can be called from any process within a chore."]
[86,"ChoreQuit","ChoreQuit;","Chore","Turbo Integrator",86,"ChoreQuit","ChoreQuit causes the immediate termination of a chore. It can be called from any process within a chore."]
[87,"ChoreRollback","ChoreRollback;","Chore","Turbo Integrator",87,"ChoreRollback","ChoreRollback initiates a chore rollback. When used inside a TurboIntegrator process, this function throws out all pending edits and cancels further processing."]
[88,"SetChoreVerboseMessages","SetChoreVerboseMessages( nValue );","Chore","Turbo Integrator",88,"SetChoreVerboseMessages","Use SetChoreVerboseMessages to turn on (or off) more verbose reporting of messages to the Tm1s.log file."]
[89,"AddCubeDependency","AddCubeDependency( sBaseCube, sDependentCube );","Cube","Turbo Integrator",89,"AddCubeDependency","AddCubeDependency lets you pre-define cube interdependencies to avoid lock contention problems during normal system use."]
[90,"CellGetN","CellGetN( sCube, sEl1, sEl2, sEl3, ... );","Cube","Turbo Integrator",90,"CellGetN","This function retrieves a value from a numeric cube cell."]
[91,"CellGetS","CellGetS( sCube, sEl1, sEl2, sEl3, ... );","Cube","Turbo Integrator",91,"CellGetS","This function retrieves a value from a string cube cell."]
[92,"CellIncrementN","CellIncrementN( nValue, sCube, sEl1, sEl2, sEl3, ... );","Cube","Turbo Integrator",92,"CellIncrementN","This function increments an existing numeric cell value by a specified value."]
[93,"CellIsUpdateable","CellIsUpdateable( sCube, sEl1, sEl2, sEl3, ... );","Cube","Turbo Integrator",93,"CellIsUpdateable","CellIsUpdateable determines whether a cube cell can be written to. The function returns 1 if the cell can be written to, otherwise it returns 0."]
[94,"CellPutProportionalSpread","CellPutProportionalSpread( nValue, sCube, sEl1, sEl2, sEl3, ... );","Cube","Turbo Integrator",94,"CellPutProportionalSpread","This function distributes a specified value to the leaves of a consolidation proportional to existing cell values."]
[95,"CellPutN","CellPutN( nValue, sCube, sEl1, sEl2, sEl3, ... );","Cube","Turbo Integrator",95,"CellPutN","This function sends a numeric value to a cube cell."]
[96,"CellPutS","CellPutS( sValue, sCube, sEl1, sEl2, sEl3, ... );","Cube","Turbo Integrator",96,"CellPutS","This function sends a string value to a cube cell."]
[97,"CubeClearData","CubeClearData( sCube );","Cube","Turbo Integrator",97,"CubeClearData","CubeClearData clears all of the data in a cube."]
[98,"CubeCreate","CubeCreate( sCube, sDim1, sDim2, sDim3, ... );","Cube","Turbo Integrator",98,"CubeCreate","This function creates a cube from specified dimensions. The order of dimensions specified in the function will be the order of dimensions in the cube definition."]
[99,"CubeDestroy","CubeDestroy( sCube );","Cube","Turbo Integrator",99,"CubeDestroy","This function deletes a specified TM1 cube."]
[100,"CubeDimensionCountGet","CubeDimensionCountGet( sCube );","Cube","Turbo Integrator",100,"CubeDimensionCountGet","CubeDimensionCountGet returns the number of dimensions in a cube."]
[101,"CubeExists","CubeExists( sCube );","Cube","Turbo Integrator",101,"CubeExists","Use CubeExists to determine if a specific cube exists on the server from which a TurboIntegrator process is executed."]
[102,"CubeGetLogChanges","CubeGetLogChanges( sCube );","Cube","Turbo Integrator",102,"CubeGetLogChanges","This function returns the Boolean value of the Logging property for a specified cube."]
[103,"CubeLockOverride","CubeLockOverride( 1 or 0 );","Cube","Turbo Integrator",103,"CubeLockOverride (*)","This function allows to still update locked cubes and locked elements. Use 1 to update."]
[104,"CubeProcReduceDims","CubeProcReduceDims;","Cube","Turbo Integrator",104,"CubeProcReduceDims"]
[105,"CubeSaveData","CubeSaveData( sCube );","Cube","Turbo Integrator",105,"CubeSaveData","CubeSaveData() serializes a cube."]
[106,"CubeSetConnParams","CubeSetConnParams(cubeName, providerName, dataSourceLocation, dataSourceName, dataSourceCatalog, userID, password, sapClientLang, providerString );","Cube","Turbo Integrator",106,"CubeSetConnParams","CubeSetConnParams is used to encrypt the password for a virtual cube in the }CubeProperties cube."]
[107,"CubeSetLogChanges","CubeSetLogChanges( sCube, nLogChanges );","Cube","Turbo Integrator",107,"CubeSetLogChanges","This function sets the LOGGING property for a cube."]
[108,"CubeTimeLastUpdated","CubeTimeLastUpdated( sCube );","Cube","Turbo Integrator",108,"CubeTimeLastUpdated","CubeTimeLastUpdated returns a serial value that indicates the date and time at which a specified cube was last updated."]
[109,"CubeUnload","CubeUnload( sCube );","Cube","Turbo Integrator",109,"CubeUnload","This function unloads a specified cube, along with all associated cube views, from memory."]
[110,"CubeDataReservationAcquire","CubeDataReservationAcquire( sCube, sUser, bForce, sAddress, [sAddressDelimiter] );","DataReservation","Turbo Integrator",110,"CubeDataReservationAcquire","CubeDataReservationAcquire acquires a Data Reservation for the specified cube, user and tuple."]
[111,"CubeDataReservationRelease","CubeDataReservationRelease( sCube, sUser, sAddress, [sAddressDelimiter] );","DataReservation","Turbo Integrator",111,"CubeDataReservationRelease","CubeDataReservationRelease releases the specified Data Reservation."]
[112,"CubeDataReservationReleaseAll","CubeDataReservationReleaseAll( sCube, sUserFilter, sAddress, [sAddressDelimiter] );","DataReservation","Turbo Integrator",112,"CubeDataReservationReleaseAll","CubeDataReservationReleaseAll releases multiple existing Data Reservations."]
[113,"CubeDataReservationGet","CubeDataReservationGet( nIndex, sCube, sUser, [sAddressDelimiter] );","DataReservation","Turbo Integrator",113,"CubeDataReservationGet","CubeDataReservationGet finds existing reservations on a specific cube for all or one user."]
[114,"CubeDataReservationGetConflicts","CubeDataReservationGetConflicts( nIndex, sCube, sUser, sAddress, [sAddressDelimiter])","DataReservation","Turbo Integrator",114,"CubeDataReservationGetConflicts","CubeDataReservationGetConflicts finds existing reservations on a specific cube that would conflict with the specified user, address and tuple."]
[115,"CubeDRAcquire","CubeDRAcquire( sCube, sUser, bForce, sAddress, [sAddressDelimiter] );","DataReservation","Turbo Integrator",115,"CubeDRAcquire","CubeDRAcquire acquires a Data Reservation for the specified cube, user and tuple. While the <span class=\"keyword apiname\">CubeDataReservationAcquire"]
[116,"CubeDRRelease","CubeDRRelease( sCube, sUser, sAddress, [sAddressDelimiter] );","DataReservation","Turbo Integrator",116,"CubeDRRelease","CubeDRRelease releases the specified Data Reservation. While the <span class=\"keyword apiname\">CubeDataReservationRelease"]
[117,"CubeDRReleaseAll","CubeDRReleaseAll( sCube, sUserFilter, sAddress, [sAddressDelimiter] );","DataReservation","Turbo Integrator",117,"CubeDRReleaseAll","CubeDRReleaseAll releases multiple existing Data Reservations. While the <span class=\"keyword apiname\">CubeDataReservationReleaseAll"]
[118,"CubeDRGet","CubeDRGet( nIndex, sCube, sUser, [sAddressDelimiter] );","DataReservation","Turbo Integrator",118,"CubeDRGet","CubeDRGet finds existing reservations on a specific cube for all or one user. While the <span class=\"keyword apiname\">CubeDataReservationGet"]
[119,"CubeDRGetConflicts","CubeDRGetConflicts( nIndex, sCube, sUser, sAddress, [sAddressDelimiter] )","DataReservation","Turbo Integrator",119,"CubeDRGetConflicts","CubeDRGetConflicts finds existing reservations on a specific cube that would conflict with the specified user. While the <span class=\"keyword apiname\">CubeDataReservationGetConflicts"]
[120,"DimensionCreate","DimensionCreate( sDim );","DimensionAndHierarchy","Turbo Integrator",120,"DimensionCreate","DimensionCreate creates a new dimension."]
[121,"DimensionDeleteAllElements","DimensionDeleteAllElements( sDim );","DimensionAndHierarchy","Turbo Integrator",121,"DimensionDeleteAllElements","This function deletes all the elements in a dimension."]
[122,"DimensionDeleteElements","DimensionDeleteElements( sDim, sSub );","DimensionAndHierarchy","Turbo Integrator",122,"DimensionDeleteElements","DimensionDeleteElements deletes all elements from a dimension using the subset of elements. All elements in the referenced subset are deleted, including C level elements."]
[123,"DimensionDestroy","DimensionDestroy( sDim );","DimensionAndHierarchy","Turbo Integrator",123,"DimensionDestroy","This function deletes a dimension from the TM1 database."]
[124,"DimensionEditingAliasSet","DimensionEditingAliasSet( sDim, sAlias );","DimensionAndHierarchy","Turbo Integrator",124,"DimensionEditingAliasSet (*)"]
[125,"DimensionElementComponentAdd","DimensionElementComponentAdd( sDim, sConsol, sEl, nWeight );","DimensionAndHierarchy","Turbo Integrator",125,"DimensionElementComponentAdd","Adds a component (child) to a consolidated element. Note that you cannot use this function in the Epilog procedure of a TurboIntegrator process."]
[126,"DimensionElementComponentAddDirect","DimensionElementComponentAddDirect( sDim, sConsol, sEl, nWeight );","DimensionAndHierarchy","Turbo Integrator",126,"DimensionElementComponentAddDirect","DimensionElementComponentAddDirect adds a component (child) to a consolidated element by directly editing a dimension."]
[127,"DimensionElementComponentDelete","DimensionElementComponentDelete( sDim, sConsol, sEl );","DimensionAndHierarchy","Turbo Integrator",127,"DimensionElementComponentDelete","This function deletes a component (child) from a consolidated element."]
[128,"DimensionElementComponentDeleteDirect","DimensionElementComponentDeleteDirect( sDim, sConsol, sEl );","DimensionAndHierarchy","Turbo Integrator",128,"DimensionElementComponentDeleteDirect","This function deletes a component (child) from a consolidated element by directly editing the dimension."]
[129,"DimensionElementDelete","DimensionElementDelete( sDim, sEl );","DimensionAndHierarchy","Turbo Integrator",129,"DimensionElementDelete","This function deletes an element from a dimension."]
[130,"DimensionElementDeleteDirect","DimensionElementDeleteDirect( sDim, sEl );","DimensionAndHierarchy","Turbo Integrator",130,"DimensionElementDeleteDirect","This function deletes an element from a dimension by directly editing the dimension."]
[131,"DimensionElementExists","DimensionElementExists( sDim, sEl );","DimensionAndHierarchy","Turbo Integrator",131,"DimensionElementExists","DimensionElementExists determines whether a specific element exists in a dimension on the server from which a TurboIntegrator process is executed."]
[132,"DimensionElementInsert","DimensionElementInsert( sDim, sInsertionPoint, sEl, sType );","DimensionAndHierarchy","Turbo Integrator",132,"DimensionElementInsert","This function adds an element to a dimension."]
[133,"DimensionElementInsertDirect","DimensionElementInsertDirect( sDim, sInsertionPoint, sEl, sType );","DimensionAndHierarchy","Turbo Integrator",133,"DimensionElementInsertDirect","This function adds an element to a dimension by directly editing the dimension."]
[134,"DimensionElementInsertByAlias","DimensionElementInsertByAlias( ??? );","DimensionAndHierarchy","Turbo Integrator",134,"DimensionElementInsertByAlias (*)"]
[135,"DimensionElementPrincipalName","DimensionElementPrincipalName( sDim, sEl );","DimensionAndHierarchy","Turbo Integrator",135,"DimensionElementPrincipalName","This function returns the principal name of an element or element alias."]
[136,"DimensionExists","DimensionExists( sDim );","DimensionAndHierarchy","Turbo Integrator",136,"DimensionExists","Use DimensionExists to determine if a specific dimension exists on the server from which a TurboIntegrator process is executed."]
[137,"DimensionHierarchyCreate","DimensionHierarchyCreate( sDim, sHier );","DimensionAndHierarchy","Turbo Integrator",137,"DimensionHierarchyCreate","DimensionHierarchyCreate creates a new hierarchy."]
[138,"DimensionSortOrder","DimensionSortOrder( sDim, sCompSortType, sCompSortOrder, sElSortType, sElSortOrder );","DimensionAndHierarchy","Turbo Integrator",138,"DimensionSortOrder","This function sets a sort type and sense for dimension elements and for components of consolidated elements within a dimension."]
[139,"DimensionTimeLastUpdated","DimensionTimeLastUpdated( sDim);","DimensionAndHierarchy","Turbo Integrator",139,"DimensionTimeLastUpdated","This function indicates when a specified dimension was last updated."]
[140,"DimensionTopElementInsert","DimensionTopElementInsert( sDim, sInsertionPoint, sEl );","DimensionAndHierarchy","Turbo Integrator",140,"DimensionTopElementInsert","This function creates a root element in a dimension."]
[141,"DimensionTopElementInsertDirect","DimensionTopElementInsertDirect( sDim, sInsertionPoint, sEl );","DimensionAndHierarchy","Turbo Integrator",141,"DimensionTopElementInsertDirect","This function creates a root element in a dimension by directlt editing the dimension."]
[142,"DimensionTopElementName","DimensionTopElementName( sDim );","DimensionAndHierarchy","Turbo Integrator",142,"DimensionTopElementName (*)"]
[143,"DimensionUpdateDirect","DimensionUpdateDirect( sDim );","DimensionAndHierarchy","Turbo Integrator",143,"DimensionUpdateDirect","This function performs a full rewrite of a dimension that has been subject to direct editing in a TurboIntegrator process, essentially compacting the memory footprint of the dimension."]
[144,"HierarchyCreate","HierarchyCreate( sDim, sHier );","DimensionAndHierarchy","Turbo Integrator",144,"HierarchyCreate","HierarchyCreate creates a new hierarchy."]
[145,"HierarchyDeleteAllElements","HierarchyDeleteAllElements( sDim, sHier );","DimensionAndHierarchy","Turbo Integrator",145,"HierarchyDeleteAllElements","This function deletes all the elements in a hierarchy."]
[146,"HierarchyDeleteElements","HierarchyDeleteElements( sDim, sHier, sSub );","DimensionAndHierarchy","Turbo Integrator",146,"HierarchyDeleteElements","HierarchyDeleteElements deletes leaf elements from a hierarchy using a subset of elements."]
[147,"HierarchyDestroy","HierarchyDestroy( sDim, sHier );","DimensionAndHierarchy","Turbo Integrator",147,"HierarchyDestroy","This function deletes a hierarchy from the TM1 database."]
[148,"HierarchyElementComponentAdd","HierarchyElementComponentAdd( sDim, sHier, sConsol, sEl, nWeight );","DimensionAndHierarchy","Turbo Integrator",148,"HierarchyElementComponentAdd","Adds a component (child) to a consolidated element. Note that you cannot use this function in the Epilog procedure of a TurboIntegrator process."]
[149,"HierarchyElementComponentAddDirect","HierarchyElementComponentAddDirect( sDim, sHier, sConsol, sEl, nWeight );","DimensionAndHierarchy","Turbo Integrator",149,"HierarchyElementComponentAddDirect","HierarchyElementComponentAddDirect adds a component (child) to a consolidated element by directly editing a dimension."]
[150,"HierarchyElementComponentDelete","HierarchyElementComponentDelete( sDim, sHier, sConsol, sEl );","DimensionAndHierarchy","Turbo Integrator",150,"HierarchyElementComponentDelete","This function deletes a component (child) from a consolidated element."]
[151,"HierarchyElementComponentDeleteDirect","HierarchyElementComponentDeleteDirect( sDim, sHier, sConsol, sEl );","DimensionAndHierarchy","Turbo Integrator",151,"HierarchyElementComponentDeleteDirect","This function deletes a component (child) from a consolidated element by directly editing the dimension."]
[152,"HierarchyElementDelete","HierarchyElementDelete( sDim, sHier, sEl );","DimensionAndHierarchy","Turbo Integrator",152,"HierarchyElementDelete","This function deletes an element from a dimension."]
[153,"HierarchyElementDeleteDirect","HierarchyElementDeleteDirect( sDim, sHier, sEl );","DimensionAndHierarchy","Turbo Integrator",153,"HierarchyElementDeleteDirect","This function deletes an element from a dimension by directly editing the dimension."]
[154,"HierarchyElementExists","HierarchyElementExists( sDim, sHier, sEl );","DimensionAndHierarchy","Turbo Integrator",154,"HierarchyElementExists","HierarchyElementExists determines whether a specific elements exists in a hierarchy on the server from which a TurboIntegrator process is executed."]
[155,"HierarchyElementInsert","HierarchyElementInsert( sDim, sHier, sInsertionPoint, sEl, sType );","DimensionAndHierarchy","Turbo Integrator",155,"HierarchyElementInsert","This function adds an element to a dimension."]
[156,"HierarchyElementInsertDirect","HierarchyElementInsertDirect( sDim, sHier, sInsertionPoint, sEl, sType );","DimensionAndHierarchy","Turbo Integrator",156,"HierarchyElementInsertDirect","This function adds an element to a dimension by directly editing the dimension."]
[157,"HierarchyElementPrincipalName","HierarchyElementPrincipalName( sDim, sHier, sEl );","DimensionAndHierarchy","Turbo Integrator",157,"HierarchyElementPrincipalName","This function returns the principal name of an element or element alias."]
[158,"HierarchyExists","HierarchyExists( sDim, sHier );","DimensionAndHierarchy","Turbo Integrator",158,"HierarchyExists","Use HierarchyExists to determine if a specific hierarchy exists on the server from which a TurboIntegrator process is executed."]
[159,"HierarchySortOrder","HierarchySortOrder( sDim, sHier, sCompSortType, sCompSortOrder, sElSortType, sElSortOrder );","DimensionAndHierarchy","Turbo Integrator",159,"HierarchySortOrder","This function sets a sort type and sense for dimension elements and for components of consolidated elements within a dimension."]
[160,"HierarchyTimeLastUpdated","HierarchyTimeLastUpdated( sDim, sHier );","DimensionAndHierarchy","Turbo Integrator",160,"HierarchyTimeLastUpdated (*)","This function indicates when a specified dimension hierarchy was last updated. Result in milliseconds (undocumented feature)."]
[161,"HierarchyTopElementInsert","HierarchyTopElementInsert( sDim, sHier, sInsertionPoint, sEl );","DimensionAndHierarchy","Turbo Integrator",161,"HierarchyTopElementInsert","This function creates a root element in a dimension."]
[162,"HierarchyTopElementInsertDirect","HierarchyTopElementInsertDirect( sDim, sHier, sInsertionPoint, sEl );","DimensionAndHierarchy","Turbo Integrator",162,"HierarchyTopElementInsertDirect","This function creates a root element in a dimension by directly editing the dimension."]
[163,"HierarchyUpdateDirect","HierarchyUpdateDirect( sDim, sHier );","DimensionAndHierarchy","Turbo Integrator",163,"HierarchyUpdateDirect","This function performs a full rewrite of a dimension that has been subject to direct editing in a TurboIntegrator process, essentially compacting the memory footprint of the dimension."]
[164,"HierarchyContainsAllLeaves","HierarchyContainsAllLeaves( sDim, sHier );","DimensionAndHierarchy","Turbo Integrator",164,"HierarchyContainsAllLeaves","This function returns true only if the specified hierarchy contains the full set of leaf elements that are present in the dimension. That is, it contains all the leaf elements that can be seen in the special <dfn class=\"term\">Leaves</dfn> hierarchy. If the specified hierarchy is missing one or more leaf elements, this function returns false."]
[165,"HierarchyHasOrphanedLeaves","HierarchyHasOrphanedLeaves( sDim, sHier );","DimensionAndHierarchy","Turbo Integrator",165,"HierarchyHasOrphanedLeaves","The HierarchyHasOrphanedLeaves function returns true if there are one or more elements in the specified hierarchy that are not components of a parent element in that hierarchy. That is, values stored against such elements will not be aggregated. This function returns false if all leaf elements in the hierarchy are a component of one or more parent elements."]
[166,"CreateHierarchyByAttribute","CreateHierarchyByAttribute( sDim, sAttr [, emptyParent [, rootName ] ] );","DimensionAndHierarchy","Turbo Integrator",166,"CreateHierarchyByAttribute","CreateHierarchyByAttribute creates a simple 3-level hierarchy from a single attribute."]

{"sheet":"TI cheat sheet","index":1,"n_rows":106,"n_cols":13,"rows_kept":106,"cut":false,"hidden":false,"merged":[[1,0,1,4]]}
[]
["Turbo Integrator cheat sheet"]
[]
["GENERAL",null,null,"DIMENSION AND HIERARCHY MANIPULATION",null,null,null,null,null,null,null,null,"Quick peak:"]
["You can use almost all Rules functions in TI",null,null,{"$f":"\nIF( ISNUMBER( J5 ), INDEX(Tbl_Functions[Naam_cheat], MATCH( SMALL( Tbl_Functions[ID_Lookup], J5 ), Tbl_Functions[ID_Lookup], 0 )), \"\" )","v":"DimensionCreate"},{"$f":"\nIF( ISNUMBER( K5 ), INDEX(Tbl_Functions[Naam_cheat], MATCH( SMALL( Tbl_Functions[ID_Lookup], K5 ), Tbl_Functions[ID_Lookup], 0 )), \"\" )","v":"HierarchyCreate"},null,null,null,null,{"$f":"\nH80+1","v":120},{"$f":"\nJ28+1","v":144},null,"excel_lijstjesuittabel_A"]
[null,null,null,{"$f":"\nIF( ISNUMBER( J6 ), INDEX(Tbl_Functions[Naam_cheat], MATCH( SMALL( Tbl_Functions[ID_Lookup], J6 ), Tbl_Functions[ID_Lookup], 0 )), \"\" )","v":"DimensionDeleteAllElements"},{"$f":"\nIF( ISNUMBER( K6 ), INDEX(Tbl_Functions[Naam_cheat], MATCH( SMALL( Tbl_Functions[ID_Lookup], K6 ), Tbl_Functions[ID_Lookup], 0 )), \"\" )","v":"HierarchyDeleteAllElements"},null,null,null,null,{"$f":"\nJ5+1","v":121},{"$f":"\nK5+1","v":145},null,{"$f":"\nIFERROR( IF( M5<>\"\", INDEX(Tbl_Functions[Formula], MATCH( M5, Tbl_Functions[Naam_cheat], 0 )), \"\" ), \"\")","v":""}]
["To apply existing functions for the new hierarchies concept in PA, you can often use:",null,null,{"$f":"\nIF( ISNUMBER( J7 ), INDEX(Tbl_Functions[Naam_cheat], MATCH( SMALL( Tbl_Functions[ID_Lookup], J7 ), Tbl_Functions[ID_Lookup], 0 )), \"\" )","v":"DimensionDeleteElements"},{"$f":"\nIF( ISNUMBER( K7 ), INDEX(Tbl_Functions[Naam_cheat], MATCH( SMALL( Tbl_Functions[ID_Lookup], K7 ), Tbl_Functions[ID_Lookup], 0 )), \"\" )","v":"HierarchyDeleteElements"},null,null,null,null,{"$f":"\nJ6+1","v":122},{"$f":"\nK6+1","v":146}]
["=\nfunction('dim_name:hier_name') instead of =function('dim_name')",null,null,{"$f":"\nIF( ISNUMBER( J8 ), INDEX(Tbl_Functions[Naam_cheat], MATCH( SMALL( Tbl_Functions[ID_Lookup], J8 ), Tbl_Functions[ID_Lookup], 0 )), \"\" )","v":"DimensionDestroy"},{"$f":"\nIF( ISNUMBER( K8 ), INDEX(Tbl_Functions[Naam_cheat], MATCH( SMALL( Tbl_Functions[ID_Lookup], K8 ), Tbl_Functions[ID_Lookup], 0 )), \"\" )","v":"HierarchyDestroy"},null,null,null,null,123,147,null,{"$f":"\nIFERROR( IF( M5<>\"\", IF( INDEX(Tbl_Functions[Description], MATCH( M5, Tbl_Functions[Naam_cheat], 0 )) <> \"\", INDEX(Tbl_Functions[Description], MATCH( M5, Tbl_Functions[Naam_cheat], 0 )), \"\" ), \"\" ), \"\")","v":""}]
["Inversely, functions that require a dimension and hierarchy name can be brought back ",null,null,{"$f":"\nIF( ISNUMBER( J9 ), INDEX(Tbl_Functions[Naam_cheat], MATCH( SMALL( Tbl_Functions[ID_Lookup], J9 ), Tbl_Functions[ID_Lookup], 0 )), \"\" )","v":"DimensionEditingAliasSet (*)"},{"$f":"\nIF( ISNUMBER( K9 ), INDEX(Tbl_Functions[Naam_cheat], MATCH( SMALL( Tbl_Functions[ID_Lookup], K9 ), Tbl_Functions[ID_Lookup], 0 )), \"\" )","v":"HierarchyElementComponentAdd"},null,null,null,null,124,148]
["to the non-hierarchy case by supplying the dimension name as the hierarchy name",null,null,{"$f":"\nIF( ISNUMBER( J10 ), INDEX(Tbl_Functions[Naam_cheat], MATCH( SMALL( Tbl_Functions[ID_Lookup], J10 ), Tbl_Functions[ID_Lookup], 0 )), \"\" )","v":"DimensionElementComponentAdd"},{"$f":"\nIF( ISNUMBER( K10 ), INDEX(Tbl_Functions[Naam_cheat], MATCH( SMALL( Tbl_Functions[ID_Lookup], K10 ), Tbl_Functions[ID_Lookup], 0 )), \"\" )","v":"HierarchyElementComponentAddDirect"},null,null,null,null,125,149]
[null,null,null,{"$f":"\nIF( ISNUMBER( J11 ), INDEX(Tbl_Functions[Naam_cheat], MATCH( SMALL( Tbl_Functions[ID_Lookup], J11 ), Tbl_Functions[ID_Lookup], 0 )), \"\" )","v":"DimensionElementComponentAddDirect"},{"$f":"\nIF( ISNUMBER( K11 ), INDEX(Tbl_Functions[Naam_cheat], MATCH( SMALL( Tbl_Functions[ID_Lookup], K11 ), Tbl_Functions[ID_Lookup], 0 )), \"\" )","v":"HierarchyElementComponentDelete"},null,null,null,null,126,150]
["ASCII AND TEXT",null,null,{"$f":"\nIF( ISNUMBER( J12 ), INDEX(Tbl_Functions[Naam_cheat], MATCH( SMALL( Tbl_Functions[ID_Lookup], J12 ), Tbl_Functions[ID_Lookup], 0 )), \"\" )","v":"DimensionElementComponentDelete"},{"$f":"\nIF( ISNUMBER( K12 ), INDEX(Tbl_Functions[Naam_cheat], MATCH( SMALL( Tbl_Functions[ID_Lookup], K12 ), Tbl_Functions[ID_Lookup], 0 )), \"\" )","v":"HierarchyElementComponentDeleteDirect"},null,null,null,null,127,151]
[{"$f":"\nIF( ISNUMBER( G13 ), INDEX(Tbl_Functions[Naam_cheat], MATCH( SMALL( Tbl_Functions[ID_Lookup], G13 ), Tbl_Functions[ID_Lookup], 0 )), \"\" )","v":"AsciiDelete"},{"$f":"\nIF( ISNUMBER( H13 ), INDEX(Tbl_Functions[Naam_cheat], MATCH( SMALL( Tbl_Functions[ID_Lookup], H13 ), Tbl_Functions[ID_Lookup], 0 )), \"\" )","v":"SetInputCharacterSet"},null,{"$f":"\nIF( ISNUMBER( J13 ), INDEX(Tbl_Functions[Naam_cheat], MATCH( SMALL( Tbl_Functions[ID_Lookup], J13 ), Tbl_Functions[ID_Lookup], 0 )), \"\" )","v":"DimensionElementComponentDeleteDirect"},{"$f":"\nIF( ISNUMBER( K13 ), INDEX(Tbl_Functions[Naam_cheat], MATCH( SMALL( Tbl_Functions[ID_Lookup], K13 ), Tbl_Functions[ID_Lookup], 0 )), \"\" )","v":"HierarchyElementDelete"},null,1,{"$f":"\nG15+1","v":4},null,128,152]
[{"$f":"\nIF( ISNUMBER( G14 ), INDEX(Tbl_Functions[Naam_cheat], MATCH( SMALL( Tbl_Functions[ID_Lookup], G14 ), Tbl_Functions[ID_Lookup], 0 )), \"\" )","v":"AsciiOutput"},{"$f":"\nIF( ISNUMBER( H14 ), INDEX(Tbl_Functions[Naam_cheat], MATCH( SMALL( Tbl_Functions[ID_Lookup], H14 ), Tbl_Functions[ID_Lookup], 0 )), \"\" )","v":"SetOutputCharacterSet"},null,{"$f":"\nIF( ISNUMBER( J14 ), INDEX(Tbl_Functions[Naam_cheat], MATCH( SMALL( Tbl_Functions[ID_Lookup], J14 ), Tbl_Functions[ID_Lookup], 0 )), \"\" )","v":"DimensionElementDelete"},{"$f":"\nIF( ISNUMBER( K14 ), INDEX(Tbl_Functions[Naam_cheat], MATCH( SMALL( Tbl_Functions[ID_Lookup], K14 ), Tbl_Functions[ID_Lookup], 0 )), \"\" )","v":"HierarchyElementDeleteDirect"},null,{"$f":"\nG13+1","v":2},{"$f":"\nH13+1","v":5},null,129,153]
[{"$f":"\nIF( ISNUMBER( G15 ), INDEX(Tbl_Functions[Naam_cheat], MATCH( SMALL( Tbl_Functions[ID_Lookup], G15 ), Tbl_Functions[ID_Lookup], 0 )), \"\" )","v":"TextOutput"},{"$f":"\nIF( ISNUMBER( H15 ), INDEX(Tbl_Functions[Naam_cheat], MATCH( SMALL( Tbl_Functions[ID_Lookup], H15 ), Tbl_Functions[ID_Lookup], 0 )), \"\" )","v":"SetOutputEscapeDoubleQuote"},null,{"$f":"\nIF( ISNUMBER( J15 ), INDEX(Tbl_Functions[Naam_cheat], MATCH( SMALL( Tbl_Functions[ID_Lookup], J15 ), Tbl_Functions[ID_Lookup], 0 )), \"\" )","v":"DimensionElementDeleteDirect"},{"$f":"\nIF( ISNUMBER( K15 ), INDEX(Tbl_Functions[Naam_cheat], MATCH( SMALL( Tbl_Functions[ID_Lookup], K15 ), Tbl_Functions[ID_Lookup], 0 )), \"\" )","v":"HierarchyElementExists"},null,{"$f":"\nG14+1","v":3},{"$f":"\nH14+1","v":6},null,130,154]
[{"$f":"\nIF( ISNUMBER( G16 ), INDEX(Tbl_Functions[Naam_cheat], MATCH( SMALL( Tbl_Functions[ID_Lookup], G16 ), Tbl_Functions[ID_Lookup], 0 )), \"\" )","v":""},{"$f":"\nIF( ISNUMBER( H16 ), INDEX(Tbl_Functions[Naam_cheat], MATCH( SMALL( Tbl_Functions[ID_Lookup], H16 ), Tbl_Functions[ID_Lookup], 0 )), \"\" )","v":""},null,{"$f":"\nIF( ISNUMBER( J16 ), INDEX(Tbl_Functions[Naam_cheat], MATCH( SMALL( Tbl_Functions[ID_Lookup], J16 ), Tbl_Functions[ID_Lookup], 0 )), \"\" )","v":"DimensionElementExists"},{"$f":"\nIF( ISNUMBER( K16 ), INDEX(Tbl_Functions[Naam_cheat], MATCH( SMALL( Tbl_Functions[ID_Lookup], K16 ), Tbl_Functions[ID_Lookup], 0 )), \"\" )","v":"HierarchyElementInsert"},null,null,null,null,131,155]
["ATTRIBUTE MANIPULATION",null,null,{"$f":"\nIF( ISNUMBER( J17 ), INDEX(Tbl_Functions[Naam_cheat], MATCH( SMALL( Tbl_Functions[ID_Lookup], J17 ), Tbl_Functions[ID_Lookup], 0 )), \"\" )","v":"DimensionElementInsert"},{"$f":"\nIF( ISNUMBER( K17 ), INDEX(Tbl_Functions[Naam_cheat], MATCH( SMALL( Tbl_Functions[ID_Lookup], K17 ), Tbl_Functions[ID_Lookup], 0 )), \"\" )","v":"HierarchyElementInsertDirect"},null,null,null,null,132,156]
[{"$f":"\nIF( ISNUMBER( G18 ), INDEX(Tbl_Functions[Naam_cheat], MATCH( SMALL( Tbl_Functions[ID_Lookup], G18 ), Tbl_Functions[ID_Lookup], 0 )), \"\" )","v":"AttrNL"},{"$f":"\nIF( ISNUMBER( H18 ), INDEX(Tbl_Functions[Naam_cheat], MATCH( SMALL( Tbl_Functions[ID_Lookup], H18 ), Tbl_Functions[ID_Lookup], 0 )), \"\" )","v":"HierarchyAttrPutN"},null,{"$f":"\nIF( ISNUMBER( J18 ), INDEX(Tbl_Functions[Naam_cheat], MATCH( SMALL( Tbl_Functions[ID_Lookup], J18 ), Tbl_Functions[ID_Lookup], 0 )), \"\" )","v":"DimensionElementInsertDirect"},{"$f":"\nIF( ISNUMBER( K18 ), INDEX(Tbl_Functions[Naam_cheat], MATCH( SMALL( Tbl_Functions[ID_Lookup], K18 ), Tbl_Functions[ID_Lookup], 0 )), \"\" )","v":"HierarchyElementPrincipalName"},null,{"$f":"\nH15+1","v":7},{"$f":"\nG56+1","v":46},null,133,157]
[{"$f":"\nIF( ISNUMBER( G19 ), INDEX(Tbl_Functions[Naam_cheat], MATCH( SMALL( Tbl_Functions[ID_Lookup], G19 ), Tbl_Functions[ID_Lookup], 0 )), \"\" )","v":"AttrSL"},{"$f":"\nIF( ISNUMBER( H19 ), INDEX(Tbl_Functions[Naam_cheat], MATCH( SMALL( Tbl_Functions[ID_Lookup], H19 ), Tbl_Functions[ID_Lookup], 0 )), \"\" )","v":"HierarchyAttrPutS"},null,{"$f":"\nIF( ISNUMBER( J19 ), INDEX(Tbl_Functions[Naam_cheat], MATCH( SMALL( Tbl_Functions[ID_Lookup], J19 ), Tbl_Functions[ID_Lookup], 0 )), \"\" )","v":"DimensionElementInsertByAlias (*)"},{"$f":"\nIF( ISNUMBER( K19 ), INDEX(Tbl_Functions[Naam_cheat], MATCH( SMALL( Tbl_Functions[ID_Lookup], K19 ), Tbl_Functions[ID_Lookup], 0 )), \"\" )","v":"HierarchyExists"},null,{"$f":"\nG18+1","v":8},{"$f":"\nH18+1","v":47},null,134,158]
[{"$f":"\nIF( ISNUMBER( G20 ), INDEX(Tbl_Functions[Naam_cheat], MATCH( SMALL( Tbl_Functions[ID_Lookup], G20 ), Tbl_Functions[ID_Lookup], 0 )), \"\" )","v":"AttrDelete"},{"$f":"\nIF( ISNUMBER( H20 ), INDEX(Tbl_Functions[Naam_cheat], MATCH( SMALL( Tbl_Functions[ID_Lookup], H20 ), Tbl_Functions[ID_Lookup], 0 )), \"\" )","v":"HierarchyAttrn"},null,{"$f":"\nIF( ISNUMBER( J20 ), INDEX(Tbl_Functions[Naam_cheat], MATCH( SMALL( Tbl_Functions[ID_Lookup], J20 ), Tbl_Functions[ID_Lookup], 0 )), \"\" )","v":"DimensionElementPrincipalName"},{"$f":"\nIF( ISNUMBER( K20 ), INDEX(Tbl_Functions[Naam_cheat], MATCH( SMALL( Tbl_Functions[ID_Lookup], K20 ), Tbl_Functions[ID_Lookup], 0 )), \"\" )","v":"HierarchySortOrder"},null,9,48,null,135,159]
[{"$f":"\nIF( ISNUMBER( G21 ), INDEX(Tbl_Functions[Naam_cheat], MATCH( SMALL( Tbl_Functions[ID_Lookup], G21 ), Tbl_Functions[ID_Lookup], 0 )), \"\" )","v":"AttrInsert"},{"$f":"\nIF( ISNUMBER( H21 ), INDEX(Tbl_Functions[Naam_cheat], MATCH( SMALL( Tbl_Functions[ID_Lookup], H21 ), Tbl_Functions[ID_Lookup], 0 )), \"\" )","v":"HierarchyAttrnl"},null,{"$f":"\nIF( ISNUMBER( J21 ), INDEX(Tbl_Functions[Naam_cheat], MATCH( SMALL( Tbl_Functions[ID_Lookup], J21 ), Tbl_Functions[ID_Lookup], 0 )), \"\" )","v":"DimensionExists"},{"$f":"\nIF( ISNUMBER( K21 ), INDEX(Tbl_Functions[Naam_cheat], MATCH( SMALL( Tbl_Functions[ID_Lookup], K21 ), Tbl_Functions[ID_Lookup], 0 )), \"\" )","v":"HierarchyTimeLastUpdated (*)"},null,10,49,null,136,160]
[{"$f":"\nIF( ISNUMBER( G22 ), INDEX(Tbl_Functions[Naam_cheat], MATCH( SMALL( Tbl_Functions[ID_Lookup], G22 ), Tbl_Functions[ID_Lookup], 0 )), \"\" )","v":"AttrPutN"},{"$f":"\nIF( ISNUMBER( H22 ), INDEX(Tbl_Functions[Naam_cheat], MATCH( SMALL( Tbl_Functions[ID_Lookup], H22 ), Tbl_Functions[ID_Lookup], 0 )), \"\" )","v":"HierarchyAttrs"},null,{"$f":"\nIF( ISNUMBER( J22 ), INDEX(Tbl_Functions[Naam_cheat], MATCH( SMALL( Tbl_Functions[ID_Lookup], J22 ), Tbl_Functions[ID_Lookup], 0 )), \"\" )","v":"DimensionHierarchyCreate"},{"$f":"\nIF( ISNUMBER( K22 ), INDEX(Tbl_Functions[Naam_cheat], MATCH( SMALL( Tbl_Functions[ID_Lookup], K22 ), Tbl_Functions[ID_Lookup], 0 )), \"\" )","v":"HierarchyTopElementInsert"},null,11,50,null,137,161]
[{"$f":"\nIF( ISNUMBER( G23 ), INDEX(Tbl_Functions[Naam_cheat], MATCH( SMALL( Tbl_Functions[ID_Lookup], G23 ), Tbl_Functions[ID_Lookup], 0 )), \"\" )","v":"AttrPutS (*)"},{"$f":"\nIF( ISNUMBER( H23 ), INDEX(Tbl_Functions[Naam_cheat], MATCH( SMALL( Tbl_Functions[ID_Lookup], H23 ), Tbl_Functions[ID_Lookup], 0 )), \"\" )","v":"HierarchyAttrsl"},null,{"$f":"\nIF( ISNUMBER( J23 ), INDEX(Tbl_Functions[Naam_cheat], MATCH( SMALL( Tbl_Functions[ID_Lookup], J23 ), Tbl_Functions[ID_Lookup], 0 )), \"\" )","v":"DimensionSortOrder"},{"$f":"\nIF( ISNUMBER( K23 ), INDEX(Tbl_Functions[Naam_cheat], MATCH( SMALL( Tbl_Functions[ID_Lookup], K23 ), Tbl_Functions[ID_Lookup], 0 )), \"\" )","v":"HierarchyTopElementInsertDirect"},null,12,51,null,138,162]
[{"$f":"\nIF( ISNUMBER( G24 ), INDEX(Tbl_Functions[Naam_cheat], MATCH( SMALL( Tbl_Functions[ID_Lookup], G24 ), Tbl_Functions[ID_Lookup], 0 )), \"\" )","v":"AttrToAlias (*)"},{"$f":"\nIF( ISNUMBER( H24 ), INDEX(Tbl_Functions[Naam_cheat], MATCH( SMALL( Tbl_Functions[ID_Lookup], H24 ), Tbl_Functions[ID_Lookup], 0 )), \"\" )","v":"HierarchySubsetAttrDelete"},null,{"$f":"\nIF( ISNUMBER( J24 ), INDEX(Tbl_Functions[Naam_cheat], MATCH( SMALL( Tbl_Functions[ID_Lookup], J24 ), Tbl_Functions[ID_Lookup], 0 )), \"\" )","v":"DimensionTimeLastUpdated"},{"$f":"\nIF( ISNUMBER( K24 ), INDEX(Tbl_Functions[Naam_cheat], MATCH( SMALL( Tbl_Functions[ID_Lookup], K24 ), Tbl_Functions[ID_Lookup], 0 )), \"\" )","v":"HierarchyUpdateDirect"},null,13,52,null,139,163]
[{"$f":"\nIF( ISNUMBER( G25 ), INDEX(Tbl_Functions[Naam_cheat], MATCH( SMALL( Tbl_Functions[ID_Lookup], G25 ), Tbl_Functions[ID_Lookup], 0 )), \"\" )","v":"ChoreAttrDelete"},{"$f":"\nIF( ISNUMBER( H25 ), INDEX(Tbl_Functions[Naam_cheat], MATCH( SMALL( Tbl_Functions[ID_Lookup], H25 ), Tbl_Functions[ID_Lookup], 0 )), \"\" )","v":"HierarchySubsetAttrInsert"},null,{"$f":"\nIF( ISNUMBER( J25 ), INDEX(Tbl_Functions[Naam_cheat], MATCH( SMALL( Tbl_Functions[ID_Lookup], J25 ), Tbl_Functions[ID_Lookup], 0 )), \"\" )","v":"DimensionTopElementInsert"},{"$f":"\nIF( ISNUMBER( K25 ), INDEX(Tbl_Functions[Naam_cheat], MATCH( SMALL( Tbl_Functions[ID_Lookup], K25 ), Tbl_Functions[ID_Lookup], 0 )), \"\" )","v":"HierarchyContainsAllLeaves"},null,14,53,null,140,164]
[{"$f":"\nIF( ISNUMBER( G26 ), INDEX(Tbl_Functions[Naam_cheat], MATCH( SMALL( Tbl_Functions[ID_Lookup], G26 ), Tbl_Functions[ID_Lookup], 0 )), \"\" )","v":"ChoreAttrInsert"},{"$f":"\nIF( ISNUMBER( H26 ), INDEX(Tbl_Functions[Naam_cheat], MATCH( SMALL( Tbl_Functions[ID_Lookup], H26 ), Tbl_Functions[ID_Lookup], 0 )), \"\" )","v":"HierarchySubsetAttrn"},null,{"$f":"\nIF( ISNUMBER( J26 ), INDEX(Tbl_Functions[Naam_cheat], MATCH( SMALL( Tbl_Functions[ID_Lookup], J26 ), Tbl_Functions[ID_Lookup], 0 )), \"\" )","v":"DimensionTopElementInsertDirect"},{"$f":"\nIF( ISNUMBER( K26 ), INDEX(Tbl_Functions[Naam_cheat], MATCH( SMALL( Tbl_Functions[ID_Lookup], K26 ), Tbl_Functions[ID_Lookup], 0 )), \"\" )","v":"HierarchyHasOrphanedLeaves"},null,15,54,null,141,165]
[{"$f":"\nIF( ISNUMBER( G27 ), INDEX(Tbl_Functions[Naam_cheat], MATCH( SMALL( Tbl_Functions[ID_Lookup], G27 ), Tbl_Functions[ID_Lookup], 0 )), \"\" )","v":"ChoreAttrPutN"},{"$f":"\nIF( ISNUMBER( H27 ), INDEX(Tbl_Functions[Naam_cheat], MATCH( SMALL( Tbl_Functions[ID_Lookup], H27 ), Tbl_Functions[ID_Lookup], 0 )), \"\" )","v":"HierarchySubsetAttrnl"},null,{"$f":"\nIF( ISNUMBER( J27 ), INDEX(Tbl_Functions[Naam_cheat], MATCH( SMALL( Tbl_Functions[ID_Lookup], J27 ), Tbl_Functions[ID_Lookup], 0 )), \"\" )","v":"DimensionTopElementName (*)"},{"$f":"\nIF( ISNUMBER( K27 ), INDEX(Tbl_Functions[Naam_cheat], MATCH( SMALL( Tbl_Functions[ID_Lookup], K27 ), Tbl_Functions[ID_Lookup], 0 )), \"\" )","v":"CreateHierarchyByAttribute"},null,16,55,null,142,166]
[{"$f":"\nIF( ISNUMBER( G28 ), INDEX(Tbl_Functions[Naam_cheat], MATCH( SMALL( Tbl_Functions[ID_Lookup], G28 ), Tbl_Functions[ID_Lookup], 0 )), \"\" )","v":"ChoreAttrPutS"},{"$f":"\nIF( ISNUMBER( H28 ), INDEX(Tbl_Functions[Naam_cheat], MATCH( SMALL( Tbl_Functions[ID_Lookup], H28 ), Tbl_Functions[ID_Lookup], 0 )), \"\" )","v":"HierarchySubsetAttrPutN"},null,{"$f":"\nIF( ISNUMBER( J28 ), INDEX(Tbl_Functions[Naam_cheat], MATCH( SMALL( Tbl_Functions[ID_Lookup], J28 ), Tbl_Functions[ID_Lookup], 0 )), \"\" )","v":"DimensionUpdateDirect"},{"$f":"\nIF( ISNUMBER( K28 ), INDEX(Tbl_Functions[Naam_cheat], MATCH( SMALL( Tbl_Functions[ID_Lookup], K28 ), Tbl_Functions[ID_Lookup], 0 )), \"\" )","v":""},null,17,56,null,143]
[{"$f":"\nIF( ISNUMBER( G29 ), INDEX(Tbl_Functions[Naam_cheat], MATCH( SMALL( Tbl_Functions[ID_Lookup], G29 ), Tbl_Functions[ID_Lookup], 0 )), \"\" )","v":"ChoreATTRN"},{"$f":"\nIF( ISNUMBER( H29 ), INDEX(Tbl_Functions[Naam_cheat], MATCH( SMALL( Tbl_Functions[ID_Lookup], H29 ), Tbl_Functions[ID_Lookup], 0 )), \"\" )","v":"HierarchySubsetAttrPutS"},null,null,null,null,18,57]
[{"$f":"\nIF( ISNUMBER( G30 ), INDEX(Tbl_Functions[Naam_cheat], MATCH( SMALL( Tbl_Functions[ID_Lookup], G30 ), Tbl_Functions[ID_Lookup], 0 )), \"\" )","v":"ChoreATTRNL"},{"$f":"\nIF( ISNUMBER( H30 ), INDEX(Tbl_Functions[Naam_cheat], MATCH( SMALL( Tbl_Functions[ID_Lookup], H30 ), Tbl_Functions[ID_Lookup], 0 )), \"\" )","v":"HierarchySubsetAttrs"},null,null,null,null,19,58]
[{"$f":"\nIF( ISNUMBER( G31 ), INDEX(Tbl_Functions[Naam_cheat], MATCH( SMALL( Tbl_Functions[ID_Lookup], G31 ), Tbl_Functions[ID_Lookup], 0 )), \"\" )","v":"ChoreATTRS"},{"$f":"\nIF( ISNUMBER( H31 ), INDEX(Tbl_Functions[Naam_cheat], MATCH( SMALL( Tbl_Functions[ID_Lookup], H31 ), Tbl_Functions[ID_Lookup], 0 )), \"\" )","v":"HierarchySubsetAttrsl"},null,null,null,null,20,59]
[{"$f":"\nIF( ISNUMBER( G32 ), INDEX(Tbl_Functions[Naam_cheat], MATCH( SMALL( Tbl_Functions[ID_Lookup], G32 ), Tbl_Functions[ID_Lookup], 0 )), \"\" )","v":"ChoreATTRSL"},{"$f":"\nIF( ISNUMBER( H32 ), INDEX(Tbl_Functions[Naam_cheat], MATCH( SMALL( Tbl_Functions[ID_Lookup], H32 ), Tbl_Functions[ID_Lookup], 0 )), \"\" )","v":"ProcessAttrDelete"},null,null,null,null,21,60]
[{"$f":"\nIF( ISNUMBER( G33 ), INDEX(Tbl_Functions[Naam_cheat], MATCH( SMALL( Tbl_Functions[ID_Lookup], G33 ), Tbl_Functions[ID_Lookup], 0 )), \"\" )","v":"CubeAttrDelete"},{"$f":"\nIF( ISNUMBER( H33 ), INDEX(Tbl_Functions[Naam_cheat], MATCH( SMALL( Tbl_Functions[ID_Lookup], H33 ), Tbl_Functions[ID_Lookup], 0 )), \"\" )","v":"ProcessAttrInsert"},null,null,null,null,22,61]
[{"$f":"\nIF( ISNUMBER( G34 ), INDEX(Tbl_Functions[Naam_cheat], MATCH( SMALL( Tbl_Functions[ID_Lookup], G34 ), Tbl_Functions[ID_Lookup], 0 )), \"\" )","v":"CubeAttrInsert"},{"$f":"\nIF( ISNUMBER( H34 ), INDEX(Tbl_Functions[Naam_cheat], MATCH( SMALL( Tbl_Functions[ID_Lookup], H34 ), Tbl_Functions[ID_Lookup], 0 )), \"\" )","v":"ProcessATTRN"},null,null,null,null,23,62]
[{"$f":"\nIF( ISNUMBER( G35 ), INDEX(Tbl_Functions[Naam_cheat], MATCH( SMALL( Tbl_Functions[ID_Lookup], G35 ), Tbl_Functions[ID_Lookup], 0 )), \"\" )","v":"CubeAttrPutN"},{"$f":"\nIF( ISNUMBER( H35 ), INDEX(Tbl_Functions[Naam_cheat], MATCH( SMALL( Tbl_Functions[ID_Lookup], H35 ), Tbl_Functions[ID_Lookup], 0 )), \"\" )","v":"ProcessATTRNL"},null,null,null,null,24,63]
[{"$f":"\nIF( ISNUMBER( G36 ), INDEX(Tbl_Functions[Naam_cheat], MATCH( SMALL( Tbl_Functions[ID_Lookup], G36 ), Tbl_Functions[ID_Lookup], 0 )), \"\" )","v":"CubeAttrPutS"},{"$f":"\nIF( ISNUMBER( H36 ), INDEX(Tbl_Functions[Naam_cheat], MATCH( SMALL( Tbl_Functions[ID_Lookup], H36 ), Tbl_Functions[ID_Lookup], 0 )), \"\" )","v":"ProcessAttrPutN"},null,null,null,null,25,64]
[{"$f":"\nIF( ISNUMBER( G37 ), INDEX(Tbl_Functions[Naam_cheat], MATCH( SMALL( Tbl_Functions[ID_Lookup], G37 ), Tbl_Functions[ID_Lookup], 0 )), \"\" )","v":"CubeATTRN"},{"$f":"\nIF( ISNUMBER( H37 ), INDEX(Tbl_Functions[Naam_cheat], MATCH( SMALL( Tbl_Functions[ID_Lookup], H37 ), Tbl_Functions[ID_Lookup], 0 )), \"\" )","v":"ProcessAttrPutS"},null,null,null,null,26,65]
[{"$f":"\nIF( ISNUMBER( G38 ), INDEX(Tbl_Functions[Naam_cheat], MATCH( SMALL( Tbl_Functions[ID_Lookup], G38 ), Tbl_Functions[ID_Lookup], 0 )), \"\" )","v":"CubeATTRNL"},{"$f":"\nIF( ISNUMBER( H38 ), INDEX(Tbl_Functions[Naam_cheat], MATCH( SMALL( Tbl_Functions[ID_Lookup], H38 ), Tbl_Functions[ID_Lookup], 0 )), \"\" )","v":"ProcessATTRS"},null,"Author:","Wim Gielis (Aexis)",null,27,66]
[{"$f":"\nIF( ISNUMBER( G39 ), INDEX(Tbl_Functions[Naam_cheat], MATCH( SMALL( Tbl_Functions[ID_Lookup], G39 ), Tbl_Functions[ID_Lookup], 0 )), \"\" )","v":"CubeATTRS"},{"$f":"\nIF( ISNUMBER( H39 ), INDEX(Tbl_Functions[Naam_cheat], MATCH( SMALL( Tbl_Functions[ID_Lookup], H39 ), Tbl_Functions[ID_Lookup], 0 )), \"\" )","v":"ProcessATTRSL"},null,"Version:","V06 (Nov. 14, 2021)",null,28,67]
[{"$f":"\nIF( ISNUMBER( G40 ), INDEX(Tbl_Functions[Naam_cheat], MATCH( SMALL( Tbl_Functions[ID_Lookup], G40 ), Tbl_Functions[ID_Lookup], 0 )), \"\" )","v":"CubeATTRSL"},{"$f":"\nIF( ISNUMBER( H40 ), INDEX(Tbl_Functions[Naam_cheat], MATCH( SMALL( Tbl_Functions[ID_Lookup], H40 ), Tbl_Functions[ID_Lookup], 0 )), \"\" )","v":"SubsetAttrDelete"},null,"Printed on:",{"$f":"TODAY()","v":"2021-11-14"},null,29,68]
[{"$f":"\nIF( ISNUMBER( G41 ), INDEX(Tbl_Functions[Naam_cheat], MATCH( SMALL( Tbl_Functions[ID_Lookup], G41 ), Tbl_Functions[ID_Lookup], 0 )), \"\" )","v":"DimensionAttrDelete"},{"$f":"\nIF( ISNUMBER( H41 ), INDEX(Tbl_Functions[Naam_cheat], MATCH( SMALL( Tbl_Functions[ID_Lookup], H41 ), Tbl_Functions[ID_Lookup], 0 )), \"\" )","v":"SubsetAttrInsert"},null,"Versions:","PAL 2.0.9.10, PAW 2.0.69",null,30,69]
[{"$f":"\nIF( ISNUMBER( G42 ), INDEX(Tbl_Functions[Naam_cheat], MATCH( SMALL( Tbl_Functions[ID_Lookup], G42 ), Tbl_Functions[ID_Lookup], 0 )), \"\" )","v":"DimensionAttrInsert"},{"$f":"\nIF( ISNUMBER( H42 ), INDEX(Tbl_Functions[Naam_cheat], MATCH( SMALL( Tbl_Functions[ID_Lookup], H42 ), Tbl_Functions[ID_Lookup], 0 )), \"\" )","v":"SubsetATTRN"},null,"Based on a presentation layout by:","Cubewise",null,31,70]
[{"$f":"\nIF( ISNUMBER( G43 ), INDEX(Tbl_Functions[Naam_cheat], MATCH( SMALL( Tbl_Functions[ID_Lookup], G43 ), Tbl_Functions[ID_Lookup], 0 )), \"\" )","v":"DimensionAttrPutN"},{"$f":"\nIF( ISNUMBER( H43 ), INDEX(Tbl_Functions[Naam_cheat], MATCH( SMALL( Tbl_Functions[ID_Lookup], H43 ), Tbl_Functions[ID_Lookup], 0 )), \"\" )","v":"SubsetATTRNL"},null,null,null,null,32,71]
[{"$f":"\nIF( ISNUMBER( G44 ), INDEX(Tbl_Functions[Naam_cheat], MATCH( SMALL( Tbl_Functions[ID_Lookup], G44 ), Tbl_Functions[ID_Lookup], 0 )), \"\" )","v":"DimensionAttrPutS"},{"$f":"\nIF( ISNUMBER( H44 ), INDEX(Tbl_Functions[Naam_cheat], MATCH( SMALL( Tbl_Functions[ID_Lookup], H44 ), Tbl_Functions[ID_Lookup], 0 )), \"\" )","v":"SubsetATTRS"},null,null," (*) undocumented function or argument",null,33,72]
[{"$f":"\nIF( ISNUMBER( G45 ), INDEX(Tbl_Functions[Naam_cheat], MATCH( SMALL( Tbl_Functions[ID_Lookup], G45 ), Tbl_Functions[ID_Lookup], 0 )), \"\" )","v":"DimensionATTRN"},{"$f":"\nIF( ISNUMBER( H45 ), INDEX(Tbl_Functions[Naam_cheat], MATCH( SMALL( Tbl_Functions[ID_Lookup], H45 ), Tbl_Functions[ID_Lookup], 0 )), \"\" )","v":"SubsetATTRSL"},null,null,null,null,34,73]
[{"$f":"\nIF( ISNUMBER( G46 ), INDEX(Tbl_Functions[Naam_cheat], MATCH( SMALL( Tbl_Functions[ID_Lookup], G46 ), Tbl_Functions[ID_Lookup], 0 )), \"\" )","v":"DimensionATTRNL"},{"$f":"\nIF( ISNUMBER( H46 ), INDEX(Tbl_Functions[Naam_cheat], MATCH( SMALL( Tbl_Functions[ID_Lookup], H46 ), Tbl_Functions[ID_Lookup], 0 )), \"\" )","v":"SubsetAttrPutN"},null,null,null,null,35,74]
[{"$f":"\nIF( ISNUMBER( G47 ), INDEX(Tbl_Functions[Naam_cheat], MATCH( SMALL( Tbl_Functions[ID_Lookup], G47 ), Tbl_Functions[ID_Lookup], 0 )), \"\" )","v":"DimensionATTRS"},{"$f":"\nIF( ISNUMBER( H47 ), INDEX(Tbl_Functions[Naam_cheat], MATCH( SMALL( Tbl_Functions[ID_Lookup], H47 ), Tbl_Functions[ID_Lookup], 0 )), \"\" )","v":"SubsetAttrPutS"},null,null,null,null,36,75]
[{"$f":"\nIF( ISNUMBER( G48 ), INDEX(Tbl_Functions[Naam_cheat], MATCH( SMALL( Tbl_Functions[ID_Lookup], G48 ), Tbl_Functions[ID_Lookup], 0 )), \"\" )","v":"DimensionATTRSL"},{"$f":"\nIF( ISNUMBER( H48 ), INDEX(Tbl_Functions[Naam_cheat], MATCH( SMALL( Tbl_Functions[ID_Lookup], H48 ), Tbl_Functions[ID_Lookup], 0 )), \"\" )","v":"ViewAttrDelete"},null,null,null,null,37,76]
[{"$f":"\nIF( ISNUMBER( G49 ), INDEX(Tbl_Functions[Naam_cheat], MATCH( SMALL( Tbl_Functions[ID_Lookup], G49 ), Tbl_Functions[ID_Lookup], 0 )), \"\" )","v":"ElementAttrDelete"},{"$f":"\nIF( ISNUMBER( H49 ), INDEX(Tbl_Functions[Naam_cheat], MATCH( SMALL( Tbl_Functions[ID_Lookup], H49 ), Tbl_Functions[ID_Lookup], 0 )), \"\" )","v":"ViewAttrInsert"},null,null,null,null,38,77]
[{"$f":"\nIF( ISNUMBER( G50 ), INDEX(Tbl_Functions[Naam_cheat], MATCH( SMALL( Tbl_Functions[ID_Lookup], G50 ), Tbl_Functions[ID_Lookup], 0 )), \"\" )","v":"ElementAttrInsert"},{"$f":"\nIF( ISNUMBER( H50 ), INDEX(Tbl_Functions[Naam_cheat], MATCH( SMALL( Tbl_Functions[ID_Lookup], H50 ), Tbl_Functions[ID_Lookup], 0 )), \"\" )","v":"ViewATTRN"},null,null,null,null,39,78]
[{"$f":"\nIF( ISNUMBER( G51 ), INDEX(Tbl_Functions[Naam_cheat], MATCH( SMALL( Tbl_Functions[ID_Lookup], G51 ), Tbl_Functions[ID_Lookup], 0 )), \"\" )","v":"ElementAttrPutN"},{"$f":"\nIF( ISNUMBER( H51 ), INDEX(Tbl_Functions[Naam_cheat], MATCH( SMALL( Tbl_Functions[ID_Lookup], H51 ), Tbl_Functions[ID_Lookup], 0 )), \"\" )","v":"ViewATTRNL"},null,null,null,null,40,79]
[{"$f":"\nIF( ISNUMBER( G52 ), INDEX(Tbl_Functions[Naam_cheat], MATCH( SMALL( Tbl_Functions[ID_Lookup], G52 ), Tbl_Functions[ID_Lookup], 0 )), \"\" )","v":"ElementAttrPutS"},{"$f":"\nIF( ISNUMBER( H52 ), INDEX(Tbl_Functions[Naam_cheat], MATCH( SMALL( Tbl_Functions[ID_Lookup], H52 ), Tbl_Functions[ID_Lookup], 0 )), \"\" )","v":"ViewAttrPutN"},null,null,null,null,41,80]
[{"$f":"\nIF( ISNUMBER( G53 ), INDEX(Tbl_Functions[Naam_cheat], MATCH( SMALL( Tbl_Functions[ID_Lookup], G53 ), Tbl_Functions[ID_Lookup], 0 )), \"\" )","v":"ElementATTRN"},{"$f":"\nIF( ISNUMBER( H53 ), INDEX(Tbl_Functions[Naam_cheat], MATCH( SMALL( Tbl_Functions[ID_Lookup], H53 ), Tbl_Functions[ID_Lookup], 0 )), \"\" )","v":"ViewAttrPutS"},null,null,null,null,42,81]
[{"$f":"\nIF( ISNUMBER( G54 ), INDEX(Tbl_Functions[Naam_cheat], MATCH( SMALL( Tbl_Functions[ID_Lookup], G54 ), Tbl_Functions[ID_Lookup], 0 )), \"\" )","v":"ElementATTRNL"},{"$f":"\nIF( ISNUMBER( H54 ), INDEX(Tbl_Functions[Naam_cheat], MATCH( SMALL( Tbl_Functions[ID_Lookup], H54 ), Tbl_Functions[ID_Lookup], 0 )), \"\" )","v":"ViewATTRS"},null,null,null,null,43,82]
[{"$f":"\nIF( ISNUMBER( G55 ), INDEX(Tbl_Functions[Naam_cheat], MATCH( SMALL( Tbl_Functions[ID_Lookup], G55 ), Tbl_Functions[ID_Lookup], 0 )), \"\" )","v":"ElementATTRS"},{"$f":"\nIF( ISNUMBER( H55 ), INDEX(Tbl_Functions[Naam_cheat], MATCH( SMALL( Tbl_Functions[ID_Lookup], H55 ), Tbl_Functions[ID_Lookup], 0 )), \"\" )","v":"ViewATTRSL"},null,null,null,null,44,83]
[{"$f":"\nIF( ISNUMBER( G56 ), INDEX(Tbl_Functions[Naam_cheat], MATCH( SMALL( Tbl_Functions[ID_Lookup], G56 ), Tbl_Functions[ID_Lookup], 0 )), \"\" )","v":"ElementATTRSL"},{"$f":"\nIF( ISNUMBER( H56 ), INDEX(Tbl_Functions[Naam_cheat], MATCH( SMALL( Tbl_Functions[ID_Lookup], H56 ), Tbl_Functions[ID_Lookup], 0 )), \"\" )","v":"SwapAliasWithPrincipalName (*)"},null,null,null,null,45,84]
[]
["CHORE CONTROL"]
[{"$f":"\nIF( ISNUMBER( G59 ), INDEX(Tbl_Functions[Naam_cheat], MATCH( SMALL( Tbl_Functions[ID_Lookup], G59 ), Tbl_Functions[ID_Lookup], 0 )), \"\" )","v":"ChoreError"},{"$f":"\nIF( ISNUMBER( H59 ), INDEX(Tbl_Functions[Naam_cheat], MATCH( SMALL( Tbl_Functions[ID_Lookup], H59 ), Tbl_Functions[ID_Lookup], 0 )), \"\" )","v":"ChoreRollback"},null,null,null,null,{"$f":"\nH56+1","v":85},{"$f":"\nG60+1","v":87}]
[{"$f":"\nIF( ISNUMBER( G60 ), INDEX(Tbl_Functions[Naam_cheat], MATCH( SMALL( Tbl_Functions[ID_Lookup], G60 ), Tbl_Functions[ID_Lookup], 0 )), \"\" )","v":"ChoreQuit"},{"$f":"\nIF( ISNUMBER( H60 ), INDEX(Tbl_Functions[Naam_cheat], MATCH( SMALL( Tbl_Functions[ID_Lookup], H60 ), Tbl_Functions[ID_Lookup], 0 )), \"\" )","v":"SetChoreVerboseMessages"},null,null,null,null,{"$f":"\nG59+1","v":86},{"$f":"\nH59+1","v":88}]
[{"$f":"\nIF( ISNUMBER(#REF! ), INDEX(Tbl_Functions[Naam_cheat], MATCH( SMALL( Tbl_Functions[ID_Lookup],#REF! ), Tbl_Functions[ID_Lookup], 0 )), \"\" )","v":""},{"$f":"\nIF( ISNUMBER(#REF! ), INDEX(Tbl_Functions[Naam_cheat], MATCH( SMALL( Tbl_Functions[ID_Lookup],#REF! ), Tbl_Functions[ID_Lookup], 0 )), \"\" )","v":""}]
["CUBE MANIPULATION"]
[{"$f":"\nIF( ISNUMBER( G63 ), INDEX(Tbl_Functions[Naam_cheat], MATCH( SMALL( Tbl_Functions[ID_Lookup], G63 ), Tbl_Functions[ID_Lookup], 0 )), \"\" )","v":"AddCubeDependency"},{"$f":"\nIF( ISNUMBER( H63 ), INDEX(Tbl_Functions[Naam_cheat], MATCH( SMALL( Tbl_Functions[ID_Lookup], H63 ), Tbl_Functions[ID_Lookup], 0 )), \"\" )","v":"CubeDimensionCountGet"},null,null,null,null,{"$f":"\nH60+1","v":89},{"$f":"\nG73+1","v":100}]
[{"$f":"\nIF( ISNUMBER( G64 ), INDEX(Tbl_Functions[Naam_cheat], MATCH( SMALL( Tbl_Functions[ID_Lookup], G64 ), Tbl_Functions[ID_Lookup], 0 )), \"\" )","v":"CellGetN"},{"$f":"\nIF( ISNUMBER( H64 ), INDEX(Tbl_Functions[Naam_cheat], MATCH( SMALL( Tbl_Functions[ID_Lookup], H64 ), Tbl_Functions[ID_Lookup], 0 )), \"\" )","v":"CubeExists"},null,null,null,null,{"$f":"\nG63+1","v":90},{"$f":"\nH63+1","v":101}]
[{"$f":"\nIF( ISNUMBER( G65 ), INDEX(Tbl_Functions[Naam_cheat], MATCH( SMALL( Tbl_Functions[ID_Lookup], G65 ), Tbl_Functions[ID_Lookup], 0 )), \"\" )","v":"CellGetS"},{"$f":"\nIF( ISNUMBER( H65 ), INDEX(Tbl_Functions[Naam_cheat], MATCH( SMALL( Tbl_Functions[ID_Lookup], H65 ), Tbl_Functions[ID_Lookup], 0 )), \"\" )","v":"CubeGetLogChanges"},null,null,null,null,{"$f":"\nG64+1","v":91},{"$f":"\nH64+1","v":102}]
[{"$f":"\nIF( ISNUMBER( G66 ), INDEX(Tbl_Functions[Naam_cheat], MATCH( SMALL( Tbl_Functions[ID_Lookup], G66 ), Tbl_Functions[ID_Lookup], 0 )), \"\" )","v":"CellIncrementN"},{"$f":"\nIF( ISNUMBER( H66 ), INDEX(Tbl_Functions[Naam_cheat], MATCH( SMALL( Tbl_Functions[ID_Lookup], H66 ), Tbl_Functions[ID_Lookup], 0 )), \"\" )","v":"CubeLockOverride (*)"},null,null,null,null,92,103]
[{"$f":"\nIF( ISNUMBER( G67 ), INDEX(Tbl_Functions[Naam_cheat], MATCH( SMALL( Tbl_Functions[ID_Lookup], G67 ), Tbl_Functions[ID_Lookup], 0 )), \"\" )","v":"CellIsUpdateable"},{"$f":"\nIF( ISNUMBER( H67 ), INDEX(Tbl_Functions[Naam_cheat], MATCH( SMALL( Tbl_Functions[ID_Lookup], H67 ), Tbl_Functions[ID_Lookup], 0 )), \"\" )","v":"CubeProcReduceDims"},null,null,null,null,93,104]
[{"$f":"\nIF( ISNUMBER( G68 ), INDEX(Tbl_Functions[Naam_cheat], MATCH( SMALL( Tbl_Functions[ID_Lookup], G68 ), Tbl_Functions[ID_Lookup], 0 )), \"\" )","v":"CellPutProportionalSpread"},{"$f":"\nIF( ISNUMBER( H68 ), INDEX(Tbl_Functions[Naam_cheat], MATCH( SMALL( Tbl_Functions[ID_Lookup], H68 ), Tbl_Functions[ID_Lookup], 0 )), \"\" )","v":"CubeSaveData"},null,null,null,null,94,105]
[{"$f":"\nIF( ISNUMBER( G69 ), INDEX(Tbl_Functions[Naam_cheat], MATCH( SMALL( Tbl_Functions[ID_Lookup], G69 ), Tbl_Functions[ID_Lookup], 0 )), \"\" )","v":"CellPutN"},{"$f":"\nIF( ISNUMBER( H69 ), INDEX(Tbl_Functions[Naam_cheat], MATCH( SMALL( Tbl_Functions[ID_Lookup], H69 ), Tbl_Functions[ID_Lookup], 0 )), \"\" )","v":"CubeSetConnParams"},null,null,null,null,95,106]
[{"$f":"\nIF( ISNUMBER( G70 ), INDEX(Tbl_Functions[Naam_cheat], MATCH( SMALL( Tbl_Functions[ID_Lookup], G70 ), Tbl_Functions[ID_Lookup], 0 )), \"\" )","v":"CellPutS"},{"$f":"\nIF( ISNUMBER( H70 ), INDEX(Tbl_Functions[Naam_cheat], MATCH( SMALL( Tbl_Functions[ID_Lookup], H70 ), Tbl_Functions[ID_Lookup], 0 )), \"\" )","v":"CubeSetLogChanges"},null,null,null,null,96,107]
[{"$f":"\nIF( ISNUMBER( G71 ), INDEX(Tbl_Functions[Naam_cheat], MATCH( SMALL( Tbl_Functions[ID_Lookup], G71 ), Tbl_Functions[ID_Lookup], 0 )), \"\" )","v":"CubeClearData"},{"$f":"\nIF( ISNUMBER( H71 ), INDEX(Tbl_Functions[Naam_cheat], MATCH( SMALL( Tbl_Functions[ID_Lookup], H71 ), Tbl_Functions[ID_Lookup], 0 )), \"\" )","v":"CubeTimeLastUpdated"},null,null,null,null,97,108]
[{"$f":"\nIF( ISNUMBER( G72 ), INDEX(Tbl_Functions[Naam_cheat], MATCH( SMALL( Tbl_Functions[ID_Lookup], G72 ), Tbl_Functions[ID_Lookup], 0 )), \"\" )","v":"CubeCreate"},{"$f":"\nIF( ISNUMBER( H72 ), INDEX(Tbl_Functions[Naam_cheat], MATCH( SMALL( Tbl_Functions[ID_Lookup], H72 ), Tbl_Functions[ID_Lookup], 0 )), \"\" )","v":"CubeUnload"},null,null,null,null,98,109]
[{"$f":"\nIF( ISNUMBER( G73 ), INDEX(Tbl_Functions[Naam_cheat], MATCH( SMALL( Tbl_Functions[ID_Lookup], G73 ), Tbl_Functions[ID_Lookup], 0 )), \"\" )","v":"CubeDestroy"},{"$f":"\nIF( ISNUMBER( H73 ), INDEX(Tbl_Functions[Naam_cheat], MATCH( SMALL( Tbl_Functions[ID_Lookup], H73 ), Tbl_Functions[ID_Lookup], 0 )), \"\" )","v":""},null,null,null,null,99]
[]
["DATA RESERVATION"]
[{"$f":"\nIF( ISNUMBER( G76 ), INDEX(Tbl_Functions[Naam_cheat], MATCH( SMALL( Tbl_Functions[ID_Lookup], G76 ), Tbl_Functions[ID_Lookup], 0 )), \"\" )","v":"CubeDataReservationAcquire"},{"$f":"\nIF( ISNUMBER( H76 ), INDEX(Tbl_Functions[Naam_cheat], MATCH( SMALL( Tbl_Functions[ID_Lookup], H76 ), Tbl_Functions[ID_Lookup], 0 )), \"\" )","v":"CubeDRAcquire"},null,null,null,null,{"$f":"\nH72+1","v":110},{"$f":"\nG80+1","v":115}]
[{"$f":"\nIF( ISNUMBER( G77 ), INDEX(Tbl_Functions[Naam_cheat], MATCH( SMALL( Tbl_Functions[ID_Lookup], G77 ), Tbl_Functions[ID_Lookup], 0 )), \"\" )","v":"CubeDataReservationRelease"},{"$f":"\nIF( ISNUMBER( H77 ), INDEX(Tbl_Functions[Naam_cheat], MATCH( SMALL( Tbl_Functions[ID_Lookup], H77 ), Tbl_Functions[ID_Lookup], 0 )), \"\" )","v":"CubeDRRelease"},null,null,null,null,{"$f":"\nG76+1","v":111},{"$f":"\nH76+1","v":116}]
[{"$f":"\nIF( ISNUMBER( G78 ), INDEX(Tbl_Functions[Naam_cheat], MATCH( SMALL( Tbl_Functions[ID_Lookup], G78 ), Tbl_Functions[ID_Lookup], 0 )), \"\" )","v":"CubeDataReservationReleaseAll"},{"$f":"\nIF( ISNUMBER( H78 ), INDEX(Tbl_Functions[Naam_cheat], MATCH( SMALL( Tbl_Functions[ID_Lookup], H78 ), Tbl_Functions[ID_Lookup], 0 )), \"\" )","v":"CubeDRReleaseAll"},null,null,null,null,{"$f":"\nG77+1","v":112},117]
[{"$f":"\nIF( ISNUMBER( G79 ), INDEX(Tbl_Functions[Naam_cheat], MATCH( SMALL( Tbl_Functions[ID_Lookup], G79 ), Tbl_Functions[ID_Lookup], 0 )), \"\" )","v":"CubeDataReservationGet"},{"$f":"\nIF( ISNUMBER( H79 ), INDEX(Tbl_Functions[Naam_cheat], MATCH( SMALL( Tbl_Functions[ID_Lookup], H79 ), Tbl_Functions[ID_Lookup], 0 )), \"\" )","v":"CubeDRGet"},null,null,null,null,113,118,null,null,246]
[{"$f":"\nIF( ISNUMBER( G80 ), INDEX(Tbl_Functions[Naam_cheat], MATCH( SMALL( Tbl_Functions[ID_Lookup], G80 ), Tbl_Functions[ID_Lookup], 0 )), \"\" )","v":"CubeDataReservationGetConflicts"},{"$f":"\nIF( ISNUMBER( H80 ), INDEX(Tbl_Functions[Naam_cheat], MATCH( SMALL( Tbl_Functions[ID_Lookup], H80 ), Tbl_Functions[ID_Lookup], 0 )), \"\" )","v":"CubeDRGetConflicts"},null,null,null,null,114,119]
[]
[]
[]
[]
[]
[null,null,null,null,null,null,{"$f":"\nK79+1","v":247},{"$f":"\nG99+1","v":261}]
[null,null,null,null,null,null,{"$f":"\nG86+1","v":248},{"$f":"\nH86+1","v":262}]
[null,null,null,null,null,null,249,263]
[null,null,null,null,null,null,250,264]
[null,null,null,null,null,null,251,265]
[null,null,null,null,null,null,252,266]
[null,null,null,null,null,null,253,267]
[null,null,null,null,null,null,254,268]
[null,null,null,null,null,null,255,269]
[null,null,null,null,null,null,256,270]
[null,null,null,null,null,null,257,271]
[null,null,null,null,null,null,258,272]
[null,null,null,null,null,null,259,273]
[null,null,null,null,null,null,260]
[]
[]
[null,null,null,null,null,null,{"$f":"\nH98+1","v":274},{"$f":"\nG105+1","v":278}]
[null,null,null,null,null,null,275,279]
[null,null,null,null,null,null,276,280]
[null,null,null,null,null,null,277]
[{"$f":"\nIF( ISNUMBER( G106 ), INDEX(Tbl_Functions[Naam_cheat], MATCH( SMALL( Tbl_Functions[ID_Lookup], G106 ), Tbl_Functions[ID_Lookup], 0 )), \"\" )","v":""},{"$f":"\nIF( ISNUMBER( H106 ), INDEX(Tbl_Functions[Naam_cheat], MATCH( SMALL( Tbl_Functions[ID_Lookup], H106 ), Tbl_Functions[ID_Lookup], 0 )), \"\" )","v":""}]